{"text_format":"1","workbook":"xlsx","n_sheets":4,"sheets":["Sheet1","Sheet2","Sheet3","Sheet4"],"not_rendered":{"charts":0,"images":0,"macros":1,"external_links":0,"defined_names":0,"comments":0,"pivot_tables":0},"unopened":[],"bounds":{"document_bytes":16777216,"sheet_cells":100000,"rows_first":2000,"rows_last":500,"rows_between":2000,"halvings":0,"cell_chars":16384,"cell_head_chars":4096},"cells_cut":0,"cells_raw":0,"read":"whole","date_system":"1900"}

{"sheet":"Sheet1","index":0,"n_rows":13,"n_cols":6,"rows_kept":13,"cut":false,"hidden":false,"merged":[]}
["Salesperson","Region","Product","Units Sold","Revenue ($)"]
["Noah Harris","Toronto","Monitor",47,5864,{"$f":"_xlfn.CONCAT(A2,\",\",B2)","v":"Noah Harris,Toronto"}]
["Noah Harris","Auckland","Monitor",17,4994,{"$f":"_xlfn.CONCAT(A3,\",\",B3)","v":"Noah Harris,Auckland"}]
["Ruby Scott","Birmingham","Monitor",11,4732,"Ruby Scott,Birmingham"]
["Michael Brown","Auckland","Laptop",30,7393,"Michael Brown,Auckland"]
["Ethan Young","Montreal","Monitor",50,2016,"Ethan Young,Montreal"]
["Lucas King","New York","Tablet",16,7715,"Lucas King,New York"]
["Amelia Taylor","Sydney","Monitor",39,8616,"Amelia Taylor,Sydney"]
["Ava Martin","Los Angeles","Printer",29,9370,"Ava Martin,Los Angeles"]
["Chloe Allen","Auckland","Printer",37,2018,"Chloe Allen,Auckland"]
["Chloe Allen","Los Angeles","Tablet",40,7605,"Chloe Allen,Los Angeles"]
["Harry Moore","Hamilton","Laptop",32,4206,"Harry Moore,Hamilton"]
["Chloe Allen","London","Printer",18,5157,"Chloe Allen,London"]

{"sheet":"Sheet2","index":1,"n_rows":13,"n_cols":6,"rows_kept":13,"cut":false,"hidden":false,"merged":[]}
["Salesperson","Region","Product","Units Sold","Revenue ($)"]
["Noah Harris","Toronto","Monitor",47,5864,{"$f":"A2&\",\"&B2","v":"Noah Harris,Toronto"}]
["Noah Harris","Auckland","Monitor",17,4994,{"$f":"A3&\",\"&B3","v":"Noah Harris,Auckland"}]
["Ruby Scott","Birmingham","Monitor",11,4732,"Ruby Scott,Birmingham"]
["Michael Brown","Auckland","Laptop",30,7393,"Michael Brown,Auckland"]
["Ethan Young","Montreal","Monitor",50,2016,"Ethan Young,Montreal"]
["Lucas King","New York","Tablet",16,7715,"Lucas King,New York"]
["Amelia Taylor","Sydney","Monitor",39,8616,"Amelia Taylor,Sydney"]
["Ava Martin","Los Angeles","Printer",29,9370,"Ava Martin,Los Angeles"]
["Chloe Allen","Auckland","Printer",37,2018,"Chloe Allen,Auckland"]
["Chloe Allen","Los Angeles","Tablet",40,7605,"Chloe Allen,Los Angeles"]
["Harry Moore","Hamilton","Laptop",32,4206,"Harry Moore,Hamilton"]
["Chloe Allen","London","Printer",18,5157,"Chloe Allen,London"]

{"sheet":"Sheet3","index":2,"n_rows":13,"n_cols":6,"rows_kept":13,"cut":false,"hidden":false,"merged":[]}
["Salesperson","Region","Product","Units Sold","Revenue ($)"]
["Noah Harris","Toronto","Monitor",47,5864,{"$f":"_xlfn.TEXTJOIN(\",\",TRUE,A2:B2)","v":"Noah Harris,Toronto"}]
["Noah Harris","Auckland","Monitor",17,4994,{"$f":"_xlfn.TEXTJOIN(\",\",TRUE,A3:B3)","v":"Noah Harris,Auckland"}]
["Ruby Scott","Birmingham","Monitor",11,4732,"Ruby Scott,Birmingham"]
["Michael Brown","Auckland","Laptop",30,7393,"Michael Brown,Auckland"]
["Ethan Young","Montreal","Monitor",50,2016,"Ethan Young,Montreal"]
["Lucas King","New York","Tablet",16,7715,"Lucas King,New York"]
["Amelia Taylor","Sydney","Monitor",39,8616,"Amelia Taylor,Sydney"]
["Ava Martin","Los Angeles","Printer",29,9370,"Ava Martin,Los Angeles"]
["Chloe Allen","Auckland","Printer",37,2018,"Chloe Allen,Auckland"]
["Chloe Allen","Los Angeles","Tablet",40,7605,"Chloe Allen,Los Angeles"]
["Harry Moore","Hamilton","Laptop",32,4206,"Harry Moore,Hamilton"]
["Chloe Allen","London","Printer",18,5157,"Chloe Allen,London"]

{"sheet":"Sheet4","index":3,"n_rows":13,"n_cols":6,"rows_kept":13,"cut":false,"hidden":false,"merged":[]}
["Salesperson","Region","Product","Units Sold","Revenue ($)"]
["Noah Harris","Toronto","Monitor",47,5864,{"$f":"combinetext(A2:B2)","v":"Noah Harris,Toronto"}]
["Noah Harris","Auckland","Monitor",17,4994,{"$f":"combinetext(A3:B3)","v":"Noah Harris,Auckland"}]
["Ruby Scott","Birmingham","Monitor",11,4732,{"$f":"combinetext(A4:B4)","v":"Ruby Scott,Birmingham"}]
["Michael Brown","Auckland","Laptop",30,7393,{"$f":"combinetext(A5:B5)","v":"Michael Brown,Auckland"}]
["Ethan Young","Montreal","Monitor",50,2016,{"$f":"combinetext(A6:B6)","v":"Ethan Young,Montreal"}]
["Lucas King","New York","Tablet",16,7715,{"$f":"combinetext(A7:B7)","v":"Lucas King,New York"}]
["Amelia Taylor","Sydney","Monitor",39,8616,{"$f":"combinetext(A8:B8)","v":"Amelia Taylor,Sydney"}]
["Ava Martin","Los Angeles","Printer",29,9370,{"$f":"combinetext(A9:B9)","v":"Ava Martin,Los Angeles"}]
["Chloe Allen","Auckland","Printer",37,2018,{"$f":"combinetext(A10:B10)","v":"Chloe Allen,Auckland"}]
["Chloe Allen","Los Angeles","Tablet",40,7605,{"$f":"combinetext(A11:B11)","v":"Chloe Allen,Los Angeles"}]
["Harry Moore","Hamilton","Laptop",32,4206,{"$f":"combinetext(A12:B12)","v":"Harry Moore,Hamilton"}]
["Chloe Allen","London","Printer",18,5157,{"$f":"combinetext(A13:B13)","v":"Chloe Allen,London"}]